fUSD/lending_fUSD_20250629
["ID","MTS","AMOUNT","RATE_DAILY","PERIOD"]
[368516820,1751194293225,-936.48,0.00028767,3]
[368516821,1751194293234,-490.0,0.00028767,3]
[368516822,1751194293244,-490.0,0.00028767,3]
[368516823,1751194293253,-814.04,0.00028767,3]
[368516824,1751194293263,-1148.44,0.00028767,3]
[368516825,1751194293272,-1544.17,0.00028767,3]
[368516826,1751194293282,-252.48260895,0.00028767,3]
[368516827,1751194293291,-1773.34,0.00028767,3]
[368516828,1751194293300,-490.0,0.00028767,3]
[368516829,1751194293309,-490.0,0.00028767,3]
[368516830,1751194293318,-490.0,0.00028767,3]
[368516831,1751194293328,-522.27,0.00028767,3]
[368516832,1751194293337,-501.36,0.00028767,3]
[368516833,1751194293346,-490.0,0.00028767,3]
[368516834,1751194293355,-490.0,0.00028767,3]
[368516835,1751194293364,-648.51,0.00028767,3]
[368516836,1751194293373,-803.16,0.00028767,3]
[368516837,1751194293382,-1313.11,0.00028767,3]
[368516838,1751194293391,-490.0,0.00028767,3]
[368516839,1751194293401,-490.0,0.00028767,3]
[368516840,1751194293410,-500.39646752,0.00028767,3]
[368516841,1751194293419,-648.86,0.00028767,3]
[368516842,1751194293428,-751.58,0.00028767,3]
[368516843,1751194293437,-1739.9,0.00028767,3]
[368516844,1751194293446,-514.77,0.00028767,3]
[368516845,1751194293456,-490.0,0.00028767,3]
[368516846,1751194293465,-490.0,0.00028767,3]
[368516847,1751194293474,-490.0,0.00028767,3]
[368516848,1751194293483,-490.0,0.00028767,3]
[368516849,1751194293492,-1125.58,0.00028767,3]
[368516850,1751194293502,-667.65,0.00028767,3]
[368516851,1751194293511,-1097.79,0.00028767,3]
[368516852,1751194293520,-745.5,0.00028767,3]
[368516853,1751194293530,-511.19853589,0.00028767,3]
[368516854,1751194293538,-490.0,0.00028767,3]
[368516855,1751194293548,-492.31,0.00028767,3]
[368516856,1751194293557,-847.7,0.00028767,3]
[368516857,1751194293567,-641.45,0.00028767,3]
[368516858,1751194293576,-1986.36,0.00028767,3]
[368516859,1751194293585,-199.08838361,0.00028767,3]
[368516860,1751194293594,-490.0,0.00028767,3]
[368516861,1751194293604,-490.0,0.00028767,3]
[368516862,1751194293613,-810.14,0.00028767,3]
[368516863,1751194293622,-613.92,0.00028767,3]
[368516864,1751194293632,-568.22,0.00028767,3]
[368516865,1751194293641,-490.0,0.00028767,3]
[368516866,1751194293651,-490.0,0.00028767,3]
[368516867,1751194293660,-682.37,0.00028767,3]
[368516868,1751194293670,-490.0,0.00028767,3]
[368516869,1751194293679,-703.34,0.00028767,3]
[368516870,1751194293689,-1604.97,0.00028767,3]
[368516871,1751194293699,-611.61,0.00028767,3]
[368516872,1751194293709,-1548.89,0.00028767,3]
[368516873,1751194293718,-490.0,0.00028767,3]
[368516874,1751194293730,-490.0,0.00028767,3]
[368516875,1751194293740,-490.0,0.00028767,3]
[368516876,1751194293749,-648.53,0.00028767,3]
[368516877,1751194293759,-929.36,0.00028767,3]
[368516878,1751194293769,-490.0,0.00028767,3]
[368516879,1751194293778,-490.0,0.00028767,3]
[368516880,1751194293788,-490.0,0.00028767,3]
[368516881,1751194293798,-490.0,0.00028767,3]
[368516882,1751194293807,-708.68,0.00028767,3]
[368516883,1751194293817,-490.0,0.00028767,3]
[368516884,1751194293827,-490.0,0.00028767,3]
[368516885,1751194293837,-490.0,0.00028767,3]
[368516886,1751194293847,-490.0,0.00028767,3]
[368516887,1751194293858,-490.0,0.00028767,3]
[368516888,1751194293867,-490.0,0.00028767,3]
[368516889,1751194293877,-1367.54,0.00028767,3]
[368516890,1751194293887,-1196.86,0.00028767,3]
[368516891,1751194293897,-946.15,0.00028767,3]
[368516892,1751194293907,-490.0,0.00028767,3]
[368516893,1751194293916,-490.0,0.00028767,3]
[368516894,1751194293926,-490.0,0.00028767,3]
[368516895,1751194293935,-490.0,0.00028767,3]
[368516896,1751194293944,-887.21,0.00028767,3]
[368516897,1751194293954,-1881.05,0.00028767,3]
[368516898,1751194293964,-490.0,0.00028767,3]
[368516899,1751194293976,-490.0,0.00028767,3]
[368516900,1751194293988,-680.84,0.00028767,3]
[368516901,1751194293997,-616.22,0.00028767,3]
[368516902,1751194294006,-1625.01,0.00028767,3]
[368516903,1751194294018,-490.0,0.00028767,3]
[368516904,1751194294027,-490.0,0.00028767,3]
[368516905,1751194294036,-684.45,0.00028767,3]
[368516906,1751194294046,-578.97,0.00028767,3]
[368516907,1751194294056,-534.15,0.00028767,3]
[368516908,1751194294065,-490.0,0.00028767,3]
[368516909,1751194294074,-490.0,0.00028767,3]
[368516910,1751194294085,-490.0,0.00028767,3]
[368516911,1751194294093,-490.0,0.00028767,3]
[368516912,1751194294104,-871.36,0.00028767,3]
[368516913,1751194294113,-529.2,0.00028767,3]
[368516914,1751194294124,-275.23484722,0.00028767,3]
[368516915,1751194294133,-612.59,0.00028767,3]
[368516916,1751194294144,-1690.95,0.00028767,3]
[368516917,1751194294153,-499.86,0.00028767,3]
[368516918,1751194294163,-972.25,0.00028767,3]
[368516919,1751194294172,-518.95948052,0.00028767,3]
[368516920,1751194294182,-490.0,0.00028767,3]
[368516921,1751194294191,-1999.98,0.00028767,3]
[368516922,1751194294201,-933.91,0.00028767,3]
[368516923,1751194294211,-983.04,0.00028767,3]
[368516924,1751194294221,-567.17,0.00028767,3]
[368516925,1751194294231,-747.2,0.00028767,3]
[368516926,1751194294241,-3120.96,0.00028767,3]
[368516927,1751194294251,-1080.24,0.00028767,3]
[368516928,1751194294261,-1141.22,0.00028767,3]
[368516929,1751194294270,-1156.07,0.00028767,3]
[368516930,1751194294279,-591.5601862,0.00028767,3]
[368516931,1751194294289,-5234.52,0.00028767,3]
[368516932,1751194294298,-723.63,0.00028767,3]
[368516933,1751194294308,-677.66,0.00028767,3]
[368516934,1751194294317,-534.04,0.00028767,3]
[368516935,1751194294326,-6702.81,0.00028767,3]
[368516936,1751194294336,-490.0,0.00028767,3]
[368516937,1751194294346,-873.47,0.00028767,3]
[368516938,1751194294356,-795.02175,0.00028767,3]
[368516939,1751194294365,-1366.91,0.00028767,3]
[368516940,1751194294375,-5532.56,0.00028767,3]
[368516941,1751194294384,-490.0,0.00028767,3]
[368516942,1751194294393,-1135.48,0.00028767,3]
[368516943,1751194294402,-3684.53,0.00028767,3]
[368516944,1751194294412,-494.45411676,0.00028767,3]
[368516945,1751194294421,-1476.15,0.00028767,3]
[368516946,1751194294431,-490.0,0.00028767,3]
[368516947,1751194294440,-1511.71,0.00028767,3]
[368516948,1751194294450,-490.0,0.00028767,3]
[368516949,1751194294459,-490.0,0.00028767,3]
[368516950,1751194294469,-103112.27,0.00028767,3]
[368516951,1751194294479,-827.69,0.00028767,3]
[368516952,1751194294489,-1080.39,0.00028767,3]
[368516953,1751194294498,-3680.78,0.00028767,3]
[368516954,1751194294507,-657.08,0.00028767,3]
[368516955,1751194294517,-1084.7,0.00028767,3]
[368516956,1751194294526,-818.64,0.00028767,3]
[368516957,1751194294535,-490.0,0.00028767,3]
[368516958,1751194294544,-1676.03,0.00028767,3]
[368516959,1751194294554,-516.35712581,0.00028767,3]
[368516960,1751194294563,-1841.91,0.00028767,3]
[368516961,1751194294573,-808.31,0.00028767,3]
[368516962,1751194294582,-1771.19,0.00028767,3]
[368516963,1751194294591,-777.13,0.00028767,3]
[368516964,1751194294601,-1397.73,0.00028767,3]
[368516965,1751194294610,-1103.86,0.00028767,3]
[368516966,1751194294620,-577.88,0.00028767,3]
[368516967,1751194294629,-2621.52,0.00028767,3]
[368516968,1751194294638,-490.0,0.00028767,3]
[368516969,1751194294648,-490.0,0.00028767,3]
[368516970,1751194294658,-490.0,0.00028767,3]
[368516971,1751194294668,-1009.96,0.00028767,3]
[368516972,1751194294677,-1009.67,0.00028767,3]
[368516973,1751194294687,-1391.51,0.00028767,3]
[368516974,1751194294696,-490.0,0.00028767,3]
[368516975,1751194294706,-490.0,0.00028767,3]
[368516976,1751194294716,-625.681203,0.00028767,3]
[368516977,1751194294726,-2403.19,0.00028767,3]
[368516978,1751194294735,-963.8,0.00028767,3]
[368516979,1751194294745,-504.64,0.00028767,3]
[368516980,1751194294755,-490.0,0.00028767,3]
[368516981,1751194294765,-796.93,0.00028767,3]
[368516982,1751194294775,-496.03,0.00028767,3]
[368516983,1751194294785,-1622.82,0.00028767,3]
[368516984,1751194294795,-1469.3,0.00028767,3]
[368516985,1751194294804,-1096.54,0.00028767,3]
[368516986,1751194294814,-867.3,0.00028767,3]
[368516987,1751194294824,-994.82,0.00028767,3]
[368516988,1751194294834,-585.7,0.00028767,3]
[368516989,1751194294844,-490.0,0.00028767,3]
[368516990,1751194294854,-986.61,0.00028767,3]
[368516991,1751194294864,-1445.24,0.00028767,3]
[368516992,1751194294874,-1284.88,0.00028767,3]
[368516993,1751194294883,-1733.58,0.00028767,3]
[368516994,1751194294893,-1113.61,0.00028767,3]
[368516995,1751194294903,-765.718893,0.00028767,3]
[368516996,1751194294912,-5329.02,0.00028767,3]
[368516997,1751194294922,-711.13,0.00028767,3]
[368516998,1751194294931,-1340.55,0.00028767,3]
[368516999,1751194294941,-546.693834,0.00028767,3]
[368517000,1751194294951,-490.0,0.00028767,3]
[368517001,1751194294960,-529.494333,0.00028767,3]
[368517002,1751194294971,-490.0,0.00028767,3]
[368517003,1751194294982,-2678.7,0.00028767,3]
[368517004,1751194294992,-490.0,0.00028767,3]
[368517005,1751194295001,-3083.58,0.00028767,3]
[368517006,1751194295011,-490.0,0.00028767,3]
[368517007,1751194295022,-795.8,0.00028767,3]
[368517008,1751194295031,-490.0,0.00028767,3]
[368517009,1751194295041,-490.0,0.00028767,3]
[368517010,1751194295052,-2825.66,0.00028767,3]
[368517011,1751194295062,-765.55,0.00028767,3]
[368517012,1751194295072,-490.0,0.00028767,3]
[368517013,1751194295081,-956.04,0.00028767,3]
[368517014,1751194295091,-1905.65,0.00028767,3]
[368517015,1751194295101,-490.0,0.00028767,3]
[368517016,1751194295111,-14415.41,0.00028767,3]
[368517017,1751194295120,-561.38,0.00028767,3]
[368517018,1751194295130,-1701.67,0.00028767,3]
[368517019,1751194295141,-496.82,0.00028767,3]
[368517020,1751194295151,-1039.13,0.00028767,3]
[368517021,1751194295160,-2176.77,0.00028767,3]
[368517022,1751194295170,-490.0,0.00028767,3]
[368517023,1751194295179,-1044.7,0.00028767,3]
[368517024,1751194295189,-684.856176,0.00028767,3]
[368517025,1751194295198,-1903.71,0.00028767,3]
[368517026,1751194295208,-490.0,0.00028767,3]
[368517027,1751194295217,-490.0,0.00028767,3]
[368517028,1751194295226,-469.899209,0.00028767,3]
[368517029,1751194295237,-467.660477,0.00028767,3]
[368517030,1751194295247,-1422.17,0.00028767,3]
[368517031,1751194295256,-490.0,0.00028767,3]
[368517032,1751194295267,-1130.93,0.00028767,3]
[368517033,1751194295276,-830.33,0.00028767,3]
[368517034,1751194295287,-1572.11,0.00028767,3]
[368517035,1751194295296,-604.44,0.00028767,3]
[368517036,1751194295306,-671.05,0.00028767,3]
[368517037,1751194295316,-2670.56,0.00028767,3]
[368517038,1751194295328,-490.0,0.00028767,3]
[368517039,1751194295337,-875.56,0.00028767,3]
[368517040,1751194295347,-1991.26,0.00028767,3]
[368517041,1751194295357,-490.0,0.00028767,3]
[368517042,1751194295366,-490.0,0.00028767,3]
[368517043,1751194295376,-490.0,0.00028767,3]
[368517044,1751194295386,-498.72,0.00028767,3]
[368517045,1751194295396,-583.28,0.00028767,3]
[368517046,1751194295406,-3811.43,0.00028767,3]
[368517047,1751194295416,-1354.26,0.00028767,3]
[368517048,1751194295425,-671.44,0.00028767,3]
[368517049,1751194295435,-1567.24,0.00028767,3]
[368517050,1751194295445,-1471.91,0.00028767,3]
[368517051,1751194295454,-490.0,0.00028767,3]
[368517052,1751194295464,-585.551072,0.00028767,3]
[368517053,1751194295474,-490.0,0.00028767,3]
[368517054,1751194295484,-8384.64,0.00028767,3]
[368517055,1751194295493,-401.574256,0.00028767,3]
[368517056,1751194295503,-410.400602,0.00028767,3]
[368517057,1751194295513,-2859.9,0.00028767,3]
[368517058,1751194295523,-583.43,0.00028767,3]
[368517059,1751194295534,-1275.82,0.00028767,3]
[368517060,1751194295544,-490.0,0.00028767,3]
[368517061,1751194295555,-1218.96,0.00028767,3]
[368517062,1751194295564,-942.64,0.00028767,3]
[368517063,1751194295575,-490.0,0.00028767,3]
[368517064,1751194295585,-2671.04,0.00028767,3]
[368517065,1751194295595,-490.0,0.00028767,3]
[368517066,1751194295605,-490.0,0.00028767,3]
[368517067,1751194295615,-1387.28,0.00028767,3]
[368517068,1751194295626,-1639.16,0.00028767,3]
[368517069,1751194295635,-2549.36,0.00028767,3]
[368517070,1751194295645,-490.0,0.00028767,3]
[368517071,1751194295657,-283.58973595,0.00028767,3]
[368517072,1751194295667,-490.0,0.00028767,3]
[368517073,1751194295677,-2657.31,0.00028767,3]
[368517074,1751194295687,-760.82,0.00028767,3]
[368517075,1751194295697,-853.61,0.00028767,3]
[368517076,1751194295706,-990.85,0.00028767,3]
[368517077,1751194295716,-490.0,0.00028767,3]
[368517078,1751194295726,-543.89,0.00028767,3]
[368517079,1751194295737,-523.02,0.00028767,3]
[368517080,1751194295746,-206.81747786,0.00028767,3]
[368517081,1751194295757,-1634.17,0.00028767,3]
[368517082,1751194295767,-888.23,0.00028767,3]
[368517083,1751194295778,-359.48083,0.00028767,3]
[368517084,1751194295788,-1835.93,0.00028767,3]
[368517085,1751194295797,-1671.08,0.00028767,3]
[368517086,1751194295807,-488.44764,0.00028767,3]
[368517087,1751194295818,-490.0,0.00028767,3]
[368517088,1751194295828,-1461.04,0.00028767,3]
[368517089,1751194295839,-4544.23,0.00028767,3]
[368517090,1751194295848,-1479.81,0.00028767,3]
[368517091,1751194295859,-490.0,0.00028767,3]
[368517092,1751194295869,-272.22913629,0.00028767,3]
[368517093,1751194295879,-490.0,0.00028767,3]
[368517094,1751194295890,-490.0,0.00028767,3]
[368517095,1751194295900,-490.0,0.00028767,3]
[368517096,1751194295911,-517.92,0.00028767,3]
[368517097,1751194295921,-1735.89,0.00028767,3]
[368517098,1751194295931,-3742.15,0.00028767,3]
[368517099,1751194296146,-2334.39,0.00028767,3]
[368517100,1751194296158,-1221.22,0.00028767,3]
[368517101,1751194296169,-3469.82,0.00028767,3]
[368517102,1751194296179,-1554.46,0.00028767,3]
[368517103,1751194296188,-1709.39,0.00028767,3]
[368517104,1751194296197,-490.0,0.00028767,3]
[368517105,1751194296206,-1302.99,0.00028767,3]
[368517106,1751194296216,-490.0,0.00028767,3]
[368517107,1751194296225,-342.462824,0.00028767,3]
[368517108,1751194296236,-490.0,0.00028767,3]
[368517109,1751194296246,-208.99766803,0.00028767,3]
[368517110,1751194296255,-490.0,0.00028767,3]
[368517111,1751194296264,-621.54,0.00028767,3]
[368517112,1751194296274,-1449.85,0.00028767,3]
[368517113,1751194296284,-403.83972,0.00028767,3]
[368517114,1751194296293,-1404.73,0.00028767,3]
[368517115,1751194296303,-2739.35,0.00028767,3]
[368517116,1751194296313,-1147.69,0.00028767,3]
[368517117,1751194296323,-677.47,0.00028767,3]
[368517118,1751194296332,-1983.22,0.00028767,3]
[368517119,1751194296342,-490.0,0.00028767,3]
[368517120,1751194296351,-490.0,0.00028767,3]
[368517121,1751194296361,-2990.15,0.00028767,3]
[368517122,1751194296371,-490.0,0.00028767,3]
[368517123,1751194296380,-1337.18,0.00028767,3]
[368517124,1751194296391,-2817.39,0.00028767,3]
[368517125,1751194296400,-552.49,0.00028767,3]
[368517126,1751194296409,-1850.59,0.00028767,3]
[368517127,1751194296419,-1361.21,0.00028767,3]
[368517128,1751194296429,-3507.44,0.00028767,3]
[368517129,1751194296438,-2114.83,0.00028767,3]
[368517130,1751194296448,-490.0,0.00028767,3]
[368517131,1751194296457,-810.52,0.00028767,3]
[368517132,1751194296466,-1952.59,0.00028767,3]
[368517133,1751194296475,-314.286784,0.00028767,3]
[368517134,1751194296485,-335.340847,0.00028767,3]
[368517135,1751194296494,-1714.23,0.00028767,3]
[368517136,1751194296504,-1796.3,0.00028767,3]
[368517137,1751194296513,-578.48,0.00028767,3]
[368517138,1751194296523,-335.8593635,0.00028767,3]
[368517139,1751194296533,-1032.52,0.00028767,3]
[368517140,1751194296543,-818.2,0.00028767,3]
[368517141,1751194296552,-1547.54,0.00028767,3]
[368517142,1751194296562,-5334.23,0.00028767,3]
[368517143,1751194296573,-1491.58,0.00028767,3]
[368517144,1751194296583,-490.0,0.00028767,3]
[368517145,1751194296593,-490.0,0.00028767,3]
[368517146,1751194296603,-1968.49,0.00028767,3]
[368517147,1751194296612,-517.94,0.00028767,3]
[368517148,1751194296622,-1256.05,0.00028767,3]
[368517149,1751194296631,-21312.98,0.00028767,3]
[368517150,1751194296641,-490.0,0.00028767,3]
[368517151,1751194296651,-335.341798,0.00028767,3]
[368517152,1751194296661,-600.66,0.00028767,3]
[368517153,1751194296672,-2796.12,0.00028767,3]
[368517154,1751194296683,-490.0,0.00028767,3]
[368517155,1751194296692,-1287.96,0.00028767,3]
[368517156,1751194296702,-306.44245,0.00028767,3]
[368517157,1751194296712,-1335.87,0.00028767,3]
[368517158,1751194296722,-1183.3,0.00028767,3]
[368517159,1751194296732,-3221.52,0.00028767,3]
[368517160,1751194296742,-490.0,0.00028767,3]
[368517161,1751194296752,-399.03884,0.00028767,3]
[368517162,1751194296762,-490.0,0.00028767,3]
[368517163,1751194296771,-744.85,0.00028767,3]
[368517164,1751194296781,-8244.69,0.00028767,3]
[368517165,1751194296790,-490.0,0.00028767,3]
[368517166,1751194296800,-1410.0,0.00028767,3]
[368517167,1751194296810,-490.0,0.00028767,3]
[368517168,1751194296820,-4501.21,0.00028767,3]
[368517169,1751194296830,-490.0,0.00028767,3]
[368517170,1751194296839,-14024.58,0.00028767,3]
[368517171,1751194296849,-717.96,0.00028767,3]
[368517172,1751194296858,-537.13,0.00028767,3]
[368517173,1751194296867,-1613.25,0.00028767,3]
[368517174,1751194296876,-3474.16,0.00028767,3]
[368517175,1751194296885,-2350.54,0.00028767,3]
[368517176,1751194296898,-9463.52,0.00028767,3]
[368517177,1751194296908,-537.29,0.00028767,3]
[368517178,1751194296917,-2017.18,0.00028767,3]
[368517179,1751194296927,-546.12,0.00028767,3]
[368517180,1751194296936,-594.99,0.00028767,3]
[368517181,1751194296946,-490.0,0.00028767,3]
[368517182,1751194296955,-650.77,0.00028767,3]
[368517183,1751194296964,-352.26964,0.00028767,3]
[368517184,1751194296979,-713.87,0.00028767,3]
[368517185,1751194296988,-490.0,0.00028767,3]
[368517186,1751194296998,-334.44413,0.00028767,3]
[368517187,1751194297007,-1560.06,0.00028767,3]
[368517188,1751194297017,-497.98,0.00028767,3]
[368517189,1751194297026,-2002.91,0.00028767,3]
[368517190,1751194297035,-1108.16,0.00028767,3]
[368517191,1751194297046,-644.91,0.00028767,3]
[368517192,1751194297055,-1166.54,0.00028767,3]
[368517193,1751194297065,-1691.47,0.00028767,3]
[368517194,1751194297074,-495.564615,0.00028767,3]
[368517195,1751194297084,-1184.84,0.00028767,3]
[368517196,1751194297093,-490.0,0.00028767,3]
[368517197,1751194297102,-1252.49,0.00028767,3]
[368517198,1751194297112,-2480.54,0.00028767,3]
[368517199,1751194297122,-11015.29,0.00028767,3]
[368517200,1751194297132,-990.59,0.00028767,3]
[368517201,1751194297141,-490.0,0.00028767,3]
[368517202,1751194297151,-2199.22,0.00028767,3]
[368517203,1751194297161,-652.43,0.00028767,3]
[368517204,1751194297171,-2658.27,0.00028767,3]
[368517205,1751194297181,-490.0,0.00028767,3]
[368517206,1751194297191,-1167.89,0.00028767,3]
[368517207,1751194297201,-490.13,0.00028767,3]
[368517208,1751194297210,-490.0,0.00028767,3]
[368517209,1751194297219,-521.1,0.00028767,3]
[368517210,1751194297229,-431.942577,0.00028767,3]
[368517211,1751194297239,-424.113485,0.00028767,3]
[368517212,1751194297248,-3083.1,0.00028767,3]
[368517213,1751194297258,-2246.22,0.00028767,3]
[368517214,1751194297268,-600.16,0.00028767,3]
[368517215,1751194297277,-1366.99,0.00028767,3]
[368517216,1751194297288,-1602.03,0.00028767,3]
[368517217,1751194297298,-1589.64,0.00028767,3]
[368517218,1751194297308,-490.0,0.00028767,3]
[368517219,1751194297319,-1698.91,0.00028767,3]
[368517220,1751194297328,-1905.99,0.00028767,3]
[368517221,1751194297338,-604.22,0.00028767,3]
[368517222,1751194297348,-546.79,0.00028767,3]
[368517223,1751194297358,-490.0,0.00028767,3]
[368517224,1751194297367,-846.78,0.00028767,3]
[368517225,1751194297376,-5253.68,0.00028767,3]
[368517226,1751194297386,-1139.22,0.00028767,3]
[368517227,1751194297395,-580.446544,0.00028767,3]
[368517228,1751194297404,-1140.25,0.00028767,3]
[368517229,1751194297414,-490.0,0.00028767,3]
[368517230,1751194297424,-1617.52,0.00028767,3]
[368517231,1751194297434,-519.66,0.00028767,3]
[368517232,1751194297443,-1421.13,0.00028767,3]
[368517233,1751194297454,-2798.55,0.00028767,3]
[368517234,1751194297464,-924.39,0.00028767,3]
[368517235,1751194297474,-490.0,0.00028767,3]
[368517236,1751194297484,-3246.95,0.00028767,3]
[368517237,1751194297495,-1691.2,0.00028767,3]
[368517238,1751194297505,-5131.41,0.00028767,3]
[368517239,1751194297515,-490.0,0.00028767,3]
[368517240,1751194297524,-613.3,0.00028767,3]
[368517241,1751194297533,-1558.36,0.00028767,3]
[368517242,1751194297543,-992.92,0.00028767,3]
[368517243,1751194297552,-384.6077928,0.00028767,3]
[368517244,1751194297562,-1147.15,0.00028767,3]
[368517245,1751194297572,-500.283145,0.00028767,3]
[368517246,1751194297582,-490.0,0.00028767,3]
[368517247,1751194297591,-490.0,0.00028767,3]
[368517248,1751194297600,-851.3,0.00028767,3]
[368517249,1751194297610,-573.82,0.00028767,3]
[368517250,1751194297619,-1928.26,0.00028767,3]
[368517251,1751194297628,-551.905913,0.00028767,3]
[368517252,1751194297638,-891.78,0.00028767,2]
[368517253,1751194297647,-1500.0,0.00028768,5]
[368517254,1751194297657,-1500.0,0.00028768,5]
[368517255,1751194297666,-350.0,0.00028768,5]
[368517256,1751194297676,-198.97225457,0.00028777,2]
[368517257,1751194297686,-168.0,0.00028783,2]
[368517258,1751194297695,-168.0,0.00028801,2]
[368517259,1751194297704,-234.0,0.00028899,2]
[368517260,1751194297714,-600.0,0.000289,10]
[368517261,1751194297724,-4054.0,0.00028914,2]
[368517262,1751194297733,-1859.75526176,0.00028969,20]
[368517263,1751194297742,-151.0,0.00029,120]
[368517264,1751194297752,-946.0,0.00029024,2]
[368517265,1751194297761,-200.773,0.00029024,2]
[368517266,1751194297771,-803.0,0.00029024,2]
[368517267,1751194297781,-930.0,0.00029024,2]
[368517268,1751194297790,-560.0,0.00029024,2]
[368517269,1751194297800,-1281.0,0.00029024,2]
[368517270,1751194297810,-1679.0,0.00029024,2]
[368517271,1751194297819,-592.0,0.00029024,2]
[368517272,1751194297829,-857.0,0.00029024,2]
[368517273,1751194297840,-156.0,0.00029024,2]
[368517274,1751194297850,-886.0,0.00029024,2]
[368517275,1751194297860,-7147.0,0.00029024,2]
[368517276,1751194297869,-701.25,0.00029039,3]
[368517277,1751194297878,-964.67,0.00029039,3]
[368517278,1751194297888,-834.71,0.00029039,3]
[368517279,1751194297898,-1226.58,0.00029039,3]
[368517280,1751194297907,-1509.58,0.00029039,3]
[368517281,1751194297917,-490.0,0.00029039,3]
[368517282,1751194297927,-1004.2,0.00029039,3]
[368517283,1751194297936,-490.0,0.00029039,3]
[368517284,1751194297947,-1273.37,0.00029039,3]
[368517285,1751194297956,-1282.38,0.00029039,3]
[368517286,1751194297966,-838.34,0.00029039,3]
[368517287,1751194297980,-1305.15,0.00029039,3]
[368517288,1751194297990,-490.0,0.00029039,3]
[368517289,1751194298000,-490.0,0.00029039,3]
[368517290,1751194298010,-490.0,0.00029039,3]
[368517291,1751194298021,-936.47,0.00029039,3]
[368517292,1751194298031,-931.86,0.00029039,3]
[368517293,1751194298041,-587.9,0.00029039,3]
[368517294,1751194298054,-566.58,0.00029039,3]
[368517295,1751194298065,-490.0,0.00029039,3]
[368517296,1751194298075,-526.6,0.00029039,3]
[368517297,1751194298086,-561.59058771,0.00029039,3]
[368517298,1751194298095,-1109.31,0.00029039,3]
[368517299,1751194298105,-490.0,0.00029039,3]
[368517300,1751194298114,-1197.41,0.00029039,3]
[368517301,1751194298123,-643.14,0.00029039,3]
[368517302,1751194298132,-1261.79,0.00029039,3]
[368517303,1751194298142,-490.0,0.00029039,3]
[368517304,1751194298152,-1701.43,0.00029039,3]
[368517305,1751194298161,-1096.93,0.00029039,3]
[368517306,1751194298170,-527.61,0.00029039,3]
[368517307,1751194298180,-567.15663839,0.00029039,3]
[368517308,1751194298190,-490.0,0.00029039,3]
[368517309,1751194298199,-754.15,0.00029039,3]
[368517310,1751194298208,-490.0,0.00029039,3]
[368517311,1751194298218,-1787.33,0.00029039,3]
[368517312,1751194298227,-2078.89,0.00029039,3]
[368517313,1751194298236,-620.67,0.00029039,3]
[368517314,1751194298246,-1393.39,0.00029039,3]
[368517315,1751194298255,-1144.96,0.00029039,3]
[368517316,1751194298265,-1657.47,0.00029039,3]
[368517317,1751194298274,-534.8,0.00029039,3]
[368517318,1751194298283,-1096.85,0.00029039,3]
[368517319,1751194298293,-1495.26,0.00029039,3]